fUSD/lending_fUSD_20260610
["ID","MTS","AMOUNT","RATE_DAILY","PERIOD"]
[424661493,1781035859000,-549.0,0.00032322,2]
[424661491,1781035859000,-500.0,0.00032322,2]
[424661498,1781035859000,-200.0,0.00032322,2]
[424661495,1781035859000,-200.0,0.00032322,2]
[424661516,1781035859000,-200.0,0.00032322,2]
[424661504,1781035859000,-200.0,0.00032322,2]
[424661494,1781035859000,-200.0,0.00032322,2]
[424661503,1781035859000,-200.0,0.00032322,2]
[424661506,1781035859000,-200.0,0.00032322,2]
[424661500,1781035859000,-200.0,0.00032322,2]
[424661499,1781035859000,-200.0,0.00032322,2]
[424661502,1781035859000,-200.0,0.00032322,2]
[424661496,1781035859000,-200.0,0.00032322,2]
[424661507,1781035859000,-200.0,0.00032322,2]
[424661497,1781035859000,-200.0,0.00032322,2]
[424661501,1781035859000,-200.0,0.00032322,2]
[424661582,1781035860000,-593.60148306,0.00032415,7]
[424661574,1781035860000,-150.0,0.00032379,7]
[424661573,1781035860000,-240.0,0.00032366,30]
[424661566,1781035860000,-150.0,0.00032365,7]
[424661570,1781035860000,-2340.0,0.00032366,30]
[424661568,1781035860000,-490.0,0.00032366,30]
[424661569,1781035860000,-424.0,0.00032366,30]
[424661571,1781035860000,-514.0,0.00032366,30]
[424661576,1781035860000,-593.60148306,0.00032379,7]
[424661567,1781035860000,-992.0,0.00032366,30]
[424661572,1781035860000,-889.0,0.00032366,30]
[424661581,1781035860000,-174.71291421,0.00032415,7]
[424661586,1781035860000,-150.0,0.00032443,7]
[424661577,1781035860000,-171.0,0.00032382,30]
[424661585,1781035860000,-150.0,0.00032442,7]
[424661580,1781035860000,-150.0,0.00032403,7]
[424661578,1781035860000,-173.0,0.00032382,30]
[424661579,1781035860000,-150.0,0.00032387,7]
[424661583,1781035860000,-2001.47889459,0.00032423,2]
[424661584,1781035860000,-150.0,0.00032435,7]
[424661587,1781035860000,-174.71291421,0.00032451,7]
[424661564,1781035860000,-1917.0,0.00032346,30]
[424661589,1781035860000,-593.60148306,0.00032451,7]
[424661575,1781035860000,-174.71291421,0.00032379,7]
[424661565,1781035860000,-4019.0,0.00032353,30]
[424661549,1781035860000,-150.0,0.00032326,7]
[424661555,1781035860000,-150.0,0.00032345,2]
[424661588,1781035860000,-150.0,0.00032451,7]
[424661538,1781035860000,-200.0,0.00032322,2]
[424661539,1781035860000,-200.0,0.00032322,2]
[424661541,1781035860000,-200.0,0.00032322,2]
[424661540,1781035860000,-200.0,0.00032322,2]
[424661544,1781035860000,-200.0,0.00032322,2]
[424661548,1781035860000,-179.97120458,0.00032323,2]
[424661543,1781035860000,-200.0,0.00032322,2]
[424661547,1781035860000,-163.0,0.00032322,2]
[424661542,1781035860000,-200.0,0.00032322,2]
[424661545,1781035860000,-200.0,0.00032322,2]
[424661563,1781035860000,-560.0,0.00032346,30]
[424661546,1781035860000,-200.0,0.00032322,2]
[424661552,1781035860000,-174.71291421,0.00032343,7]
[424661556,1781035860000,-150.0,0.00032345,2]
[424661557,1781035860000,-150.0,0.00032345,2]
[424661551,1781035860000,-150.0,0.0003234,7]
[424661558,1781035860000,-150.0,0.00032345,2]
[424661559,1781035860000,-150.0,0.00032345,2]
[424661560,1781035860000,-150.0,0.00032345,2]
[424661554,1781035860000,-150.0,0.00032345,2]
[424661553,1781035860000,-593.60148306,0.00032343,7]
[424661561,1781035860000,-558.0,0.00032346,30]
[424661562,1781035860000,-672.0,0.00032346,30]
[424661550,1781035860000,-199.41,0.00032331,30]
[424661590,1781035860000,-5000.0,0.00032454,2]
[424661594,1781035860000,-250.0,0.00032454,2]
[424661592,1781035860000,-5000.0,0.00032454,2]
[424661623,1781035860000,-150.0,0.00032625,7]
[424661616,1781035860000,-150.0,0.00032564,7]
[424661625,1781035860000,-630.74,0.0003263,120]
[424661619,1781035860000,-174.71291421,0.00032594,7]
[424661627,1781035860000,-593.60148306,0.0003263,7]
[424661637,1781035860000,-150.0,0.00032702,7]
[424661626,1781035860000,-174.71291421,0.0003263,7]
[424661628,1781035860000,-150.0,0.00032635,7]
[424661630,1781035860000,-174.71291421,0.00032666,7]
[424661631,1781035860000,-593.60148306,0.00032666,7]
[424661632,1781035860000,-150.0,0.00032672,7]
[424661618,1781035860000,-150.0,0.00032577,7]
[424661634,1781035860000,-179.97120458,0.00032696,2]
[424661635,1781035860000,-1035.53101,0.000327,120]
[424661636,1781035860000,-294.88718337,0.00032701,60]
[424661638,1781035860000,-174.71291421,0.00032702,7]
[424661642,1781035860000,-415.0,0.00032733,30]
[424661640,1781035860000,-150.0,0.00032713,7]
[424661639,1781035860000,-593.60148306,0.00032702,7]
[424661643,1781035860000,-174.71291421,0.00032738,7]
[424661641,1781035860000,-150.0,0.0003272,7]
[424661644,1781035860000,-593.60148306,0.00032738,7]
[424661645,1781035860000,-150.0,0.00032752,7]
[424661591,1781035860000,-5000.0,0.00032454,2]
[424661633,1781035860000,-150.0,0.00032674,7]
[424661622,1781035860000,-150.0,0.00032602,2]
[424661629,1781035860000,-150.0,0.00032638,7]
[424661624,1781035860000,-1154.59658392,0.00032628,30]
[424661621,1781035860000,-150.0,0.00032597,7]
[424661593,1781035860000,-250.0,0.00032454,2]
[424661596,1781035860000,-290.0,0.00032454,11]
[424661601,1781035860000,-593.60148306,0.00032487,7]
[424661597,1781035860000,-726.0,0.00032477,7]
[424661598,1781035860000,-150.0,0.00032481,7]
[424661600,1781035860000,-174.71291421,0.00032487,7]
[424661599,1781035860000,-150.0,0.00032482,7]
[424661602,1781035860000,-150.0,0.00032508,7]
[424661603,1781035860000,-150.0,0.00032519,7]
[424661604,1781035860000,-174.71291421,0.00032522,7]
[424661605,1781035860000,-593.60148306,0.00032522,7]
[424661595,1781035860000,-250.0,0.00032454,2]
[424661606,1781035860000,-6465.80478824,0.00032523,30]
[424661613,1781035860000,-174.71291421,0.00032558,7]
[424661617,1781035860000,-150.0,0.00032573,7]
[424661615,1781035860000,-150.0,0.00032562,2]
[424661611,1781035860000,-409.232,0.0003254,32]
[424661614,1781035860000,-593.60148306,0.00032558,7]
[424661620,1781035860000,-593.60148306,0.00032594,7]
[424661610,1781035860000,-5083.356,0.0003254,32]
[424661607,1781035860000,-2024.08696035,0.00032523,30]
[424661609,1781035860000,-150.0,0.0003253,7]
[424661612,1781035860000,-150.0,0.00032558,7]
[424661608,1781035860000,-3328.71680134,0.00032523,30]
[424661678,1781035861000,-1000.0,0.00032877,10]
[424661679,1781035861000,-1000.0,0.00032877,10]
[424661683,1781035861000,-1000.0,0.00032877,10]
[424661677,1781035861000,-1000.0,0.00032877,10]
[424661682,1781035861000,-1000.0,0.00032877,10]
[424661680,1781035861000,-1000.0,0.00032877,10]
[424661674,1781035861000,-1000.0,0.00032877,10]
[424661676,1781035861000,-1000.0,0.00032877,10]
[424661685,1781035861000,-1000.0,0.00032877,10]
[424661681,1781035861000,-1000.0,0.00032877,10]
[424661684,1781035861000,-1000.0,0.00032877,10]
[424661686,1781035861000,-1000.0,0.00032877,10]
[424661695,1781035861000,-1000.0,0.00032877,10]
[424661690,1781035861000,-1000.0,0.00032877,10]
[424661688,1781035861000,-1000.0,0.00032877,10]
[424661687,1781035861000,-1000.0,0.00032877,10]
[424661691,1781035861000,-1000.0,0.00032877,10]
[424661696,1781035861000,-1000.0,0.00032877,10]
[424661694,1781035861000,-1000.0,0.00032877,10]
[424661692,1781035861000,-1000.0,0.00032877,10]
[424661693,1781035861000,-1000.0,0.00032877,10]
[424661697,1781035861000,-1000.0,0.00032877,10]
[424661699,1781035861000,-1000.0,0.00032877,10]
[424661675,1781035861000,-1000.0,0.00032877,10]
[424661689,1781035861000,-1000.0,0.00032877,10]
[424661670,1781035861000,-1000.0,0.00032877,10]
[424661649,1781035861000,-593.60148306,0.00032774,7]
[424661673,1781035861000,-1000.0,0.00032877,10]
[424661706,1781035861000,-1000.0,0.00032877,10]
[424661647,1781035861000,-150.0,0.00032767,7]
[424661646,1781035861000,-150.0,0.00032767,7]
[424661648,1781035861000,-174.71291421,0.00032774,7]
[424661659,1781035861000,-150.0,0.00032829,7]
[424661661,1781035861000,-174.71291421,0.00032846,7]
[424661660,1781035861000,-150.0,0.00032832,7]
[424661652,1781035861000,-5000.0,0.00032785,2]
[424661651,1781035861000,-5000.0,0.00032785,2]
[424661650,1781035861000,-2324.0,0.00032782,11]
[424661653,1781035861000,-250.0,0.00032785,2]
[424661656,1781035861000,-174.71291421,0.0003281,7]
[424661657,1781035861000,-593.60148306,0.0003281,7]
[424661654,1781035861000,-250.0,0.00032785,2]
[424661655,1781035861000,-150.0,0.0003279,7]
[424661658,1781035861000,-150.0,0.00032815,7]
[424661664,1781035861000,-150.0,0.00032862,7]
[424661662,1781035861000,-150.0,0.00032846,7]
[424661663,1781035861000,-593.60148306,0.00032846,7]
[424661667,1781035861000,-1000.0,0.00032877,10]
[424661666,1781035861000,-1000.0,0.00032877,10]
[424661665,1781035861000,-150.0,0.00032868,7]
[424661672,1781035861000,-1000.0,0.00032877,10]
[424661668,1781035861000,-1000.0,0.00032877,10]
[424661669,1781035861000,-1000.0,0.00032877,10]
[424661671,1781035861000,-1000.0,0.00032877,10]
[424661705,1781035861000,-1000.0,0.00032877,10]
[424661757,1781035861000,-150.0,0.00032906,7]
[424661707,1781035861000,-1000.0,0.00032877,10]
[424661729,1781035861000,-1000.0,0.00032877,10]
[424661736,1781035861000,-500.0,0.00032877,2]
[424661737,1781035861000,-500.0,0.00032877,2]
[424661732,1781035861000,-489.24,0.00032877,2]
[424661734,1781035861000,-719.11424215,0.00032877,2]
[424661731,1781035861000,-1000.0,0.00032877,10]
[424661733,1781035861000,-351.31,0.00032877,2]
[424661735,1781035861000,-1000.0,0.00032877,120]
[424661740,1781035861000,-500.0,0.00032877,2]
[424661750,1781035861000,-788.19,0.00032883,30]
[424661749,1781035861000,-593.60148306,0.00032882,7]
[424661751,1781035861000,-150.0,0.00032897,7]
[424661742,1781035861000,-428.55797723,0.00032877,2]
[424661746,1781035861000,-3328.71680134,0.00032881,30]
[424661748,1781035861000,-174.71291421,0.00032882,7]
[424661744,1781035861000,-6465.80478824,0.00032881,30]
[424661745,1781035861000,-2024.08696035,0.00032881,30]
[424661743,1781035861000,-979.558387,0.00032877,120]
[424661747,1781035861000,-220.11167505,0.00032882,5]
[424661752,1781035861000,-515.3,0.00032899,2]
[424661754,1781035861000,-2033.07,0.000329,120]
[424661756,1781035861000,-382.0,0.00032904,2]
[424661753,1781035861000,-285.58,0.000329,120]
[424661755,1781035861000,-200.0,0.000329,7]
[424661698,1781035861000,-1000.0,0.00032877,10]
[424661739,1781035861000,-500.0,0.00032877,2]
[424661738,1781035861000,-500.0,0.00032877,2]
[424661741,1781035861000,-500.0,0.00032877,2]
[424661725,1781035861000,-1000.0,0.00032877,10]
[424661730,1781035861000,-1000.0,0.00032877,10]
[424661700,1781035861000,-1000.0,0.00032877,10]
[424661703,1781035861000,-1000.0,0.00032877,10]
[424661702,1781035861000,-1000.0,0.00032877,10]
[424661704,1781035861000,-1000.0,0.00032877,10]
[424661708,1781035861000,-1000.0,0.00032877,10]
[424661715,1781035861000,-1000.0,0.00032877,10]
[424661713,1781035861000,-1000.0,0.00032877,10]
[424661714,1781035861000,-1000.0,0.00032877,10]
[424661710,1781035861000,-1000.0,0.00032877,10]
[424661717,1781035861000,-1000.0,0.00032877,10]
[424661711,1781035861000,-1000.0,0.00032877,10]
[424661709,1781035861000,-1000.0,0.00032877,10]
[424661701,1781035861000,-1000.0,0.00032877,10]
[424661712,1781035861000,-1000.0,0.00032877,10]
[424661716,1781035861000,-1000.0,0.00032877,10]
[424661722,1781035861000,-1000.0,0.00032877,10]
[424661723,1781035861000,-1000.0,0.00032877,10]
[424661724,1781035861000,-1000.0,0.00032877,10]
[424661721,1781035861000,-1000.0,0.00032877,10]
[424661726,1781035861000,-1000.0,0.00032877,10]
[424661719,1781035861000,-1000.0,0.00032877,10]
[424661718,1781035861000,-1000.0,0.00032877,10]
[424661728,1781035861000,-1000.0,0.00032877,10]
[424661727,1781035861000,-1000.0,0.00032877,10]
[424661720,1781035861000,-1000.0,0.00032877,10]
[424661791,1781035862000,-593.60148306,0.0003299,7]
[424661789,1781035862000,-150.0,0.00032984,7]
[424661793,1781035862000,-382.0,0.00032998,2]
[424661794,1781035862000,-382.0,0.00032998,2]
[424661790,1781035862000,-174.71291421,0.0003299,7]
[424661788,1781035862000,-382.0,0.00032983,2]
[424661796,1781035862000,-230.005364,0.00033,14]
[424661787,1781035862000,-382.0,0.00032974,2]
[424661795,1781035862000,-200.0,0.00033,12]
[424661797,1781035862000,-1241.42,0.00033,30]
[424661792,1781035862000,-382.0,0.00032997,2]
[424661800,1781035862000,-726.0,0.00033011,8]
[424661805,1781035862000,-150.0,0.00033052,7]
[424661802,1781035862000,-150.0,0.00033026,7]
[424661806,1781035862000,-382.0,0.00033055,2]
[424661799,1781035862000,-382.0,0.00033007,2]
[424661798,1781035862000,-150.0,0.00033005,7]
[424661804,1781035862000,-593.60148306,0.00033026,7]
[424661807,1781035862000,-500.0,0.00033057,14]
[424661801,1781035862000,-150.0,0.00033023,7]
[424661809,1781035862000,-150.0,0.00033061,7]
[424661818,1781035862000,-212.29643448,0.00033073,14]
[424661808,1781035862000,-382.0,0.0003306,2]
[424661785,1781035862000,-150.0,0.00032957,7]
[424661803,1781035862000,-174.71291421,0.00033026,7]
[424661786,1781035862000,-150.0,0.00032961,7]
[424661758,1781035862000,-382.0,0.00032907,2]
[424661776,1781035862000,-426.21033715,0.00032955,2]
[424661759,1781035862000,-382.0,0.00032907,2]
[424661760,1781035862000,-150.0,0.0003291,7]
[424661761,1781035862000,-382.0,0.00032911,2]
[424661762,1781035862000,-174.71291421,0.00032918,7]
[424661764,1781035862000,-300.0,0.00032923,30]
[424661771,1781035862000,-150.0,0.00032945,7]
[424661767,1781035862000,-245.0,0.00032923,30]
[424661768,1781035862000,-1002.5091603,0.00032923,2]
[424661817,1781035862000,-150.0,0.00033072,7]
[424661763,1781035862000,-593.60148306,0.00032918,7]
[424661772,1781035862000,-174.71291421,0.00032954,7]
[424661769,1781035862000,-382.0,0.00032929,2]
[424661770,1781035862000,-643.56,0.00032934,7]
[424661766,1781035862000,-150.0,0.00032923,30]
[424661765,1781035862000,-300.0,0.00032923,30]
[424661773,1781035862000,-593.60148306,0.00032954,7]
[424661779,1781035862000,-247.24597396,0.00032955,2]
[424661781,1781035862000,-500.0,0.00032955,2]
[424661780,1781035862000,-289.94500543,0.00032955,2]
[424661774,1781035862000,-407.0,0.00032955,2]
[424661782,1781035862000,-500.0,0.00032955,2]
[424661775,1781035862000,-407.0,0.00032955,2]
[424661777,1781035862000,-150.0,0.00032955,2]
[424661783,1781035862000,-500.0,0.00032955,2]
[424661778,1781035862000,-150.0,0.00032955,2]
[424661784,1781035862000,-506.27005022,0.00032955,2]
[424661813,1781035862000,-179.97120458,0.00033068,2]
[424661858,1781035862000,-382.0,0.0003317,2]
[424661811,1781035862000,-593.60148306,0.00033062,7]
[424661852,1781035862000,-174.71291421,0.00033134,7]
[424661843,1781035862000,-79194.15708217,0.0003312,2]
[424661845,1781035862000,-500.0,0.00033123,120]
[424661844,1781035862000,-382.0,0.00033122,2]
[424661846,1781035862000,-161.01892363,0.00033123,120]
[424661848,1781035862000,-340.78390582,0.00033123,120]
[424661851,1781035862000,-340.74378743,0.00033132,2]
[424661849,1781035862000,-1154.59658392,0.00033126,30]
[424661850,1781035862000,-1231.92,0.00033128,7]
[424661854,1781035862000,-382.0,0.00033135,2]
[424661853,1781035862000,-593.60148306,0.00033134,7]
[424661860,1781035862000,-593.60148306,0.0003317,7]
[424661857,1781035862000,-150.0,0.00033156,7]
[424661856,1781035862000,-150.0,0.00033147,7]
[424661855,1781035862000,-150.0,0.00033139,7]
[424661862,1781035862000,-150.0,0.00033177,7]
[424661861,1781035862000,-952.324871,0.00033177,120]
[424661859,1781035862000,-174.71291421,0.0003317,7]
[424661865,1781035862000,-654.0,0.000332,20]
[424661866,1781035862000,-500.0,0.00033206,30]
[424661864,1781035862000,-300.0,0.000332,10]
[424661867,1781035862000,-500.0,0.00033206,30]
[424661868,1781035862000,-174.71291421,0.00033206,7]
[424661869,1781035862000,-593.60148306,0.00033206,7]
[424661810,1781035862000,-174.71291421,0.00033062,7]
[424661841,1781035862000,-5000.0,0.00033116,2]
[424661847,1781035862000,-426.27566652,0.00033123,120]
[424661863,1781035862000,-150.0,0.00033195,7]
[424661840,1781035862000,-150.0,0.000331,7]
[424661842,1781035862000,-250.0,0.00033116,2]
[424661816,1781035862000,-1000.0,0.0003307,2]
[424661815,1781035862000,-160.0,0.0003307,11]
[424661814,1781035862000,-500.0,0.0003307,2]
[424661812,1781035862000,-382.0,0.00033066,2]
[424661820,1781035862000,-382.0,0.00033079,2]
[424661822,1781035862000,-150.0,0.0003308,2]
[424661823,1781035862000,-150.0,0.0003308,2]
[424661821,1781035862000,-150.0,0.0003308,2]
[424661825,1781035862000,-150.0,0.0003308,2]
[424661826,1781035862000,-150.0,0.0003308,2]
[424661824,1781035862000,-150.0,0.0003308,2]
[424661830,1781035862000,-382.0,0.00033088,2]
[424661819,1781035862000,-160.0,0.00033078,11]
[424661839,1781035862000,-200.0,0.000331,10]
[424661828,1781035862000,-3323.0,0.00033082,10]
[424661829,1781035862000,-239.0,0.00033082,3]
[424661832,1781035862000,-2324.0,0.00033094,11]
[424661831,1781035862000,-150.0,0.00033091,7]
[424661833,1781035862000,-174.71291421,0.00033098,7]
[424661835,1781035862000,-150.0,0.000331,7]
[424661838,1781035862000,-213.98,0.000331,2]
[424661827,1781035862000,-382.0,0.00033082,2]
[424661834,1781035862000,-593.60148306,0.00033098,7]
[424661836,1781035862000,-279.82,0.000331,2]
[424661837,1781035862000,-164.6,0.000331,2]
[424661905,1781035863000,-3423.27036913,0.00033273,2]
[424661901,1781035863000,-1799.81170162,0.00033273,2]
[424661909,1781035863000,-174.71291421,0.00033278,7]
[424661908,1781035863000,-1089.19016082,0.00033273,2]
[424661906,1781035863000,-1220.11661343,0.00033273,2]
[424661900,1781035863000,-2914.06507957,0.00033273,2]
[424661903,1781035863000,-1134.16485343,0.00033273,2]
[424661899,1781035863000,-1341.51649312,0.00033273,2]
[424661902,1781035863000,-1354.93779119,0.00033273,2]
[424661904,1781035863000,-3188.70718678,0.00033273,2]
[424661911,1781035863000,-150.0,0.00033285,7]
[424661907,1781035863000,-1215.0066729,0.00033273,2]
[424661910,1781035863000,-593.60148306,0.00033278,7]
[424661917,1781035863000,-150.0,0.00033337,7]
[424661919,1781035863000,-672.0,0.00033346,30]
[424661918,1781035863000,-558.0,0.00033346,30]
[424661920,1781035863000,-560.0,0.00033346,30]
[424661914,1781035863000,-174.71291421,0.00033314,7]
[424661915,1781035863000,-593.60148306,0.00033314,7]
[424661912,1781035863000,-150.0,0.00033289,7]
[424661916,1781035863000,-150.0,0.00033332,7]
[424661923,1781035863000,-174.71291421,0.0003335,7]
[424661922,1781035863000,-150.0,0.0003335,7]
[424661932,1781035863000,-490.0,0.00033366,30]
[424661927,1781035863000,-500.0,0.00033356,60]
[424661913,1781035863000,-150.0,0.00033294,7]
[424661894,1781035863000,-160.0,0.00033243,11]
[424661875,1781035863000,-1072.69700056,0.00033223,2]
[424661884,1781035863000,-1105.95788543,0.0003323,2]
[424661921,1781035863000,-1917.0,0.00033346,30]
[424661870,1781035863000,-160.0,0.00033216,11]
[424661873,1781035863000,-1604.78491533,0.00033223,2]
[424661874,1781035863000,-1787.14729315,0.00033223,2]
[424661871,1781035863000,-150.0,0.00033216,7]
[424661872,1781035863000,-150.0,0.0003322,7]
[424661881,1781035863000,-1068.04792696,0.0003323,2]
[424661876,1781035863000,-150.0,0.00033226,2]
[424661878,1781035863000,-1094.31392763,0.0003323,2]
[424661877,1781035863000,-1996.43768981,0.0003323,2]
[424661880,1781035863000,-1146.42949959,0.0003323,2]
[424661879,1781035863000,-1191.1112996,0.0003323,2]
[424661891,1781035863000,-150.0,0.00033242,7]
[424661882,1781035863000,-1081.71675285,0.0003323,2]
[424661883,1781035863000,-1255.70739876,0.0003323,2]
[424661886,1781035863000,-6465.80478824,0.00033238,30]
[424661890,1781035863000,-174.71291421,0.00033242,7]
[424661888,1781035863000,-3328.71680134,0.00033238,30]
[424661895,1781035863000,-150.0,0.00033255,7]
[424661893,1781035863000,-150.0,0.00033242,7]
[424661889,1781035863000,-150.0,0.00033242,7]
[424661885,1781035863000,-1126.50971957,0.0003323,2]
[424661898,1781035863000,-2500.75311262,0.00033273,2]
[424661892,1781035863000,-593.60148306,0.00033242,7]
[424661896,1781035863000,-1213.41949499,0.00033273,2]
[424661887,1781035863000,-2024.08696035,0.00033238,30]
[424661897,1781035863000,-1204.80809211,0.00033273,2]
[424661924,1781035863000,-593.60148306,0.0003335,7]
[424661926,1781035863000,-700.0,0.00033356,60]
[424661925,1781035863000,-4019.0,0.00033353,30]
[424661958,1781035863000,-70365.91848467,0.00033461,15]
[424661969,1781035863000,-593.60148306,0.00033494,7]
[424661961,1781035863000,-5000.0,0.00033464,2]
[424661960,1781035863000,-5000.0,0.00033464,2]
[424661962,1781035863000,-5000.0,0.00033464,2]
[424661966,1781035863000,-150.0,0.00033479,7]
[424661968,1781035863000,-174.71291421,0.00033494,7]
[424661967,1781035863000,-150.0,0.00033487,7]
[424661965,1781035863000,-150.0,0.00033479,7]
[424661964,1781035863000,-1114.758935,0.00033477,120]
[424661963,1781035863000,-5000.0,0.00033464,2]
[424661977,1781035863000,-150.0,0.00033544,7]
[424661959,1781035863000,-8065.38510303,0.00033464,2]
[424661974,1781035863000,-174.71291421,0.0003353,7]
[424661981,1781035863000,-150.0,0.00033565,7]
[424661970,1781035863000,-500.0,0.00033516,60]
[424661971,1781035863000,-160.0,0.00033525,11]
[424661975,1781035863000,-593.60148306,0.0003353,7]
[424661972,1781035863000,-150.0,0.00033526,7]
[424661979,1781035863000,-500.0,0.00033562,2]
[424661976,1781035863000,-500.0,0.00033534,2]
[424661980,1781035863000,-1038.11984459,0.00033562,30]
[424661978,1781035863000,-726.0,0.00033545,9]
[424661983,1781035863000,-593.60148306,0.00033566,7]
[424661982,1781035863000,-174.71291421,0.00033566,7]
[424661985,1781035863000,-150.0,0.00033581,7]
[424661973,1781035863000,-150.0,0.00033527,7]
[424661946,1781035863000,-160.0,0.00033406,11]
[424661984,1781035863000,-150.0,0.00033574,7]
[424661952,1781035863000,-593.60148306,0.00033422,7]
[424661955,1781035863000,-150.0,0.00033448,7]
[424661928,1781035863000,-500.0,0.00033356,60]
[424661930,1781035863000,-516.0,0.00033366,2]
[424661929,1781035863000,-500.0,0.00033366,2]
[424661940,1781035863000,-150.0,0.00033384,7]
[424661934,1781035863000,-2340.0,0.00033366,30]
[424661941,1781035863000,-174.71291421,0.00033386,7]
[424661943,1781035863000,-2324.0,0.000334,11]
[424661942,1781035863000,-593.60148306,0.00033386,7]
[424661944,1781035863000,-471.94,0.000334,30]
[424661933,1781035863000,-424.0,0.00033366,30]
[424661935,1781035863000,-514.0,0.00033366,30]
[424661937,1781035863000,-240.0,0.00033366,30]
[424661931,1781035863000,-992.0,0.00033366,30]
[424661938,1781035863000,-150.0,0.00033371,7]
[424661953,1781035863000,-150.0,0.00033432,7]
[424661950,1781035863000,-152.0,0.00033421,12]
[424661957,1781035863000,-593.60148306,0.00033458,7]
[424661939,1781035863000,-200.0,0.00033382,4]
[424661947,1781035863000,-150.0,0.0003341,7]
[424661948,1781035863000,-160.0,0.00033414,11]
[424661954,1781035863000,-179.97120458,0.00033441,2]
[424661951,1781035863000,-174.71291421,0.00033422,7]
[424661949,1781035863000,-150.0,0.00033415,7]
[424661945,1781035863000,-160.0,0.00033403,11]
[424661936,1781035863000,-889.0,0.00033366,30]
[424661956,1781035863000,-174.71291421,0.00033458,7]
[424662024,1781035864000,-1358.0,0.0003378,2]
[424662022,1781035864000,-656.68,0.00033774,7]
[424662020,1781035864000,-150.0,0.00033764,7]
[424662018,1781035864000,-181.9275051,0.00033758,30]
[424662025,1781035864000,-1274.0,0.0003378,2]
[424662019,1781035864000,-150.0,0.00033758,7]
[424662026,1781035864000,-382.0,0.0003378,2]
[424662027,1781035864000,-1227.0,0.0003378,2]
[424662016,1781035864000,-593.60148306,0.00033746,7]
[424662012,1781035864000,-150.0,0.00033719,7]
[424662017,1781035864000,-2324.0,0.00033755,11]
[424662021,1781035864000,-150.33767,0.00033767,2]
[424662030,1781035864000,-150.0,0.00033797,7]
[424662029,1781035864000,-593.60148306,0.00033782,7]
[424662037,1781035864000,-150.0,0.00033815,2]
[424662038,1781035864000,-150.0,0.00033815,2]
[424662039,1781035864000,-150.0,0.00033815,2]
[424662028,1781035864000,-174.71291421,0.00033782,7]
[424662033,1781035864000,-150.0,0.00033803,7]
[424662035,1781035864000,-179.97120458,0.00033813,2]
[424662032,1781035864000,-13024.4,0.000338,2]
[424662034,1781035864000,-150.0,0.00033812,7]
[424662031,1781035864000,-78933.4,0.000338,2]
[424662009,1781035864000,-174.71291421,0.0003371,7]
[424662036,1781035864000,-150.0,0.00033815,2]
[424662023,1781035864000,-908.964097,0.00033777,120]
[424662011,1781035864000,-150.0,0.00033717,7]
[424661998,1781035864000,-150.0,0.00033642,7]
[424662010,1781035864000,-593.60148306,0.0003371,7]
[424662042,1781035864000,-593.60148306,0.00033818,7]
[424661989,1781035864000,-174.71291421,0.00033602,7]
[424661987,1781035864000,-2024.08696035,0.00033596,30]
[424661988,1781035864000,-3328.71680134,0.00033596,30]
[424661986,1781035864000,-6465.80478824,0.00033596,30]
[424661992,1781035864000,-5890.83,0.00033605,14]
[424661991,1781035864000,-150.0,0.00033603,7]